[Event "Titled Tuesday Blitz July 11 Early 2023"]
[White "Fiorito, Joaquin"]
[Black "Szczurek, Krzysztof"]
[WhiteFideId "180173"]
[BlackFideId "1185489"]
[WhiteElo "2618"]
[BlackElo "2481"]
[Result "0-1"]
[Round "7"]
[TimeControl "180+2"]
[Date "2023.07.11"]
[WhiteClock "0:00:01"]
[BlackClock "0:00:06"]
[Board "86"]

1. d4 {[%clk 0:03:00]}  Nf6 {[%clk 0:02:59]} 2. Nc3 {[%clk 0:03:01]}  d5 {[%clk 0:02:58]} 3. Bf4 {[%clk 0:03:02]}  c6 {[%clk 0:02:58]} 4. e3 {[%clk 0:03:02]}  Bf5 {[%clk 0:02:56]} 5. f3 {[%clk 0:03:02]}  h6 {[%clk 0:02:46]} 6. g4 {[%clk 0:02:59]}  Bh7 {[%clk 0:02:45]} 7. h4 {[%clk 0:02:59]}  e6 {[%clk 0:02:34]} 8. Qd2 {[%clk 0:02:58]}  Bd6 {[%clk 0:02:28]} 9. Nh3 {[%clk 0:02:58]}  Qc7 {[%clk 0:02:16]} 10. Bxd6 {[%clk 0:02:55]}  Qxd6 {[%clk 0:02:16]} 11. Nf4 {[%clk 0:02:55]}  Nbd7 {[%clk 0:02:14]} 12. g5 {[%clk 0:02:55]}  Ng8 {[%clk 0:02:12]} 13. e4 {[%clk 0:02:44]}  dxe4 {[%clk 0:02:05]} 14. fxe4 {[%clk 0:02:43]}  e5 {[%clk 0:02:04]} 15. dxe5 {[%clk 0:02:30]}  Qxd2+ {[%clk 0:02:03]} 16. Kxd2 {[%clk 0:02:31]}  Nxe5 {[%clk 0:02:02]} 17. Bd3 {[%clk 0:02:26]}  O-O-O {[%clk 0:01:47]} 18. Raf1 {[%clk 0:02:26]}  Ne7 {[%clk 0:01:37]} 19. Nh5 {[%clk 0:02:22]}  Rhg8 {[%clk 0:01:10]} 20. Rhg1 {[%clk 0:02:21]}  hxg5 {[%clk 0:00:51]} 21. Rxg5 {[%clk 0:02:05]}  N7g6 {[%clk 0:00:45]} 22. Ke2 {[%clk 0:01:56]}  f6 {[%clk 0:00:45]} 23. Rgg1 {[%clk 0:01:55]}  Rde8 {[%clk 0:00:35]} 24. Nf4 {[%clk 0:01:42]}  Nxh4 {[%clk 0:00:30]} 25. Rh1 {[%clk 0:01:43]}  g5 {[%clk 0:00:30]} 26. Nh5 {[%clk 0:01:43]}  Ref8 {[%clk 0:00:21]} 27. Nxf6 {[%clk 0:01:43]}  Rh8 {[%clk 0:00:21]} 28. Rhg1 {[%clk 0:01:22]}  g4 {[%clk 0:00:18]} 29. Nxg4 {[%clk 0:01:17]}  Nef3 {[%clk 0:00:18]} 30. Rg3 {[%clk 0:01:11]}  Nd4+ {[%clk 0:00:17]} 31. Kd2 {[%clk 0:01:08]}  Rxf1 {[%clk 0:00:15]} 32. Bxf1 {[%clk 0:01:09]}  Rg8 {[%clk 0:00:15]} 33. Rd3 {[%clk 0:00:56]}  Ndf3+ {[%clk 0:00:14]} 34. Ke3 {[%clk 0:00:56]}  Kc7 {[%clk 0:00:11]} 35. Be2 {[%clk 0:00:41]}  Rxg4 {[%clk 0:00:09]} 36. Bxf3 {[%clk 0:00:41]}  Nxf3 {[%clk 0:00:09]} 37. Kxf3 {[%clk 0:00:41]}  Rh4 {[%clk 0:00:10]} 38. Ke3 {[%clk 0:00:39]}  Rh2 {[%clk 0:00:09]} 39. Rd2 {[%clk 0:00:39]}  Rh3+ {[%clk 0:00:10]} 40. Kd4 {[%clk 0:00:37]}  Bg8 {[%clk 0:00:10]} 41. Rg2 {[%clk 0:00:34]}  Be6 {[%clk 0:00:10]} 42. a4 {[%clk 0:00:33]}  a6 {[%clk 0:00:09]} 43. Ke5 {[%clk 0:00:32]}  Bc4 {[%clk 0:00:08]} 44. Rg7+ {[%clk 0:00:30]}  Kb6 {[%clk 0:00:08]} 45. Kd4 {[%clk 0:00:28]}  Be6 {[%clk 0:00:05]} 46. a5+ {[%clk 0:00:24]}  Ka7 {[%clk 0:00:05]} 47. Na4 {[%clk 0:00:23]}  Rh2 {[%clk 0:00:04]} 48. Nc5 {[%clk 0:00:20]}  Bc8 {[%clk 0:00:04]} 49. Kc3 {[%clk 0:00:17]}  Rh3+ {[%clk 0:00:04]} 50. Nd3 {[%clk 0:00:18]}  Rh2 {[%clk 0:00:02]} 51. e5 {[%clk 0:00:18]}  Re2 {[%clk 0:00:03]} 52. Re7 {[%clk 0:00:17]}  Bf5 {[%clk 0:00:03]} 53. Nc5 {[%clk 0:00:15]}  Rxc2+ {[%clk 0:00:03]} 54. Kb3 {[%clk 0:00:16]}  Rxc5 {[%clk 0:00:04]} 55. Kb4 {[%clk 0:00:15]}  Rb5+ {[%clk 0:00:04]} 56. Kc4 {[%clk 0:00:15]}  Rxa5 {[%clk 0:00:05]} 57. b4 {[%clk 0:00:15]}  Rb5 {[%clk 0:00:05]} 58. Kc3 {[%clk 0:00:15]}  Kb6 {[%clk 0:00:05]} 59. Kc4 {[%clk 0:00:13]}  Rd5 {[%clk 0:00:06]} 60. Kc3 {[%clk 0:00:12]}  Rd7 {[%clk 0:00:06]} 61. Re8 {[%clk 0:00:12]}  Rh7 {[%clk 0:00:06]} 62. Rf8 {[%clk 0:00:12]}  Be6 {[%clk 0:00:06]} 63. Rf6 {[%clk 0:00:12]}  Bd5 {[%clk 0:00:06]} 64. Rd6 {[%clk 0:00:11]}  Kb5 {[%clk 0:00:06]} 65. Rd8 {[%clk 0:00:10]}  Re7 {[%clk 0:00:06]} 66. Kd4 {[%clk 0:00:10]}  Kxb4 {[%clk 0:00:06]} 67. Rb8 {[%clk 0:00:11]}  a5 {[%clk 0:00:07]} 68. e6 {[%clk 0:00:10]}  a4 {[%clk 0:00:07]} 69. Kd3 {[%clk 0:00:08]}  a3 {[%clk 0:00:07]} 70. Ra8 {[%clk 0:00:08]}  a2 {[%clk 0:00:07]} 71. Kd4 {[%clk 0:00:08]}  Rxe6 {[%clk 0:00:07]} 72. Kd3 {[%clk 0:00:01]}  Re1 {[%clk 0:00:06]} 0-1


[Site "https://www.chess.com"]

[Event "Titled Tuesday Blitz July 11 Early 2023"]
[White "Ezat, Mohamed"]
[Black "Kopczynski, Michal"]
[WhiteFideId "10600906"]
[BlackFideId "1124200"]
[WhiteElo "2609"]
[BlackElo "2472"]
[Result "1-0"]
[Round "7"]
[TimeControl "180+2"]
[Date "2023.07.11"]
[WhiteClock "0:01:47"]
[BlackClock "0:00:53"]
[Board "88"]

1. e4 {[%clk 0:02:54]}  c5 {[%clk 0:02:59]} 2. d4 {[%clk 0:02:53]}  cxd4 {[%clk 0:02:58]} 3. c3 {[%clk 0:02:48]}  d5 {[%clk 0:02:58]} 4. exd5 {[%clk 0:02:48]}  Qxd5 {[%clk 0:02:59]} 5. Nf3 {[%clk 0:02:48]}  Nc6 {[%clk 0:02:59]} 6. cxd4 {[%clk 0:02:47]}  Bg4 {[%clk 0:02:59]} 7. Be2 {[%clk 0:02:46]}  e6 {[%clk 0:02:58]} 8. Nc3 {[%clk 0:02:46]}  Bb4 {[%clk 0:02:58]} 9. O-O {[%clk 0:02:45]}  Bxc3 {[%clk 0:02:58]} 10. bxc3 {[%clk 0:02:46]}  Nge7 {[%clk 0:02:59]} 11. h3 {[%clk 0:02:44]}  Bh5 {[%clk 0:02:58]} 12. Rb1 {[%clk 0:02:41]}  O-O {[%clk 0:02:57]} 13. Rb5 {[%clk 0:02:41]}  Bxf3 {[%clk 0:02:55]} 14. Rxd5 {[%clk 0:02:41]}  Bxd5 {[%clk 0:02:54]} 15. Ba3 {[%clk 0:02:35]}  Bxa2 {[%clk 0:02:50]} 16. c4 {[%clk 0:02:32]}  Rfd8 {[%clk 0:02:35]} 17. Qc2 {[%clk 0:02:30]}  Bxc4 {[%clk 0:02:23]} 18. Qxc4 {[%clk 0:02:24]}  Rxd4 {[%clk 0:02:22]} 19. Qb3 {[%clk 0:02:20]}  b6 {[%clk 0:02:00]} 20. Bf3 {[%clk 0:02:16]}  Rad8 {[%clk 0:01:58]} 21. Qc2 {[%clk 0:02:10]}  Rd3 {[%clk 0:01:50]} 22. Ra1 {[%clk 0:02:00]}  Rxa3 {[%clk 0:01:20]} 23. Rxa3 {[%clk 0:01:58]}  Nd4 {[%clk 0:01:21]} 24. Rd3 {[%clk 0:01:52]}  e5 {[%clk 0:00:59]} 25. Qc7 {[%clk 0:01:50]}  Re8 {[%clk 0:00:53]} 26. Qxe5 {[%clk 0:01:47]} 1-0


[Site "https://www.chess.com"]

[Event "Titled Tuesday Blitz July 11 Early 2023"]
[White "Mogirzan, Matei-Valeriu"]
[Black "Zheenbekov, Nurgazy"]
[WhiteFideId "1257455"]
[BlackFideId "13800485"]
[WhiteElo "2591"]
[BlackElo "2450"]
[Result "1-0"]
[Round "7"]
[TimeControl "180+2"]
[Date "2023.07.11"]
[WhiteClock "0:00:03"]
[BlackClock "0:00:00"]
[Board "90"]

1. e4 {[%clk 0:03:00]}  e5 {[%clk 0:02:59]} 2. f4 {[%clk 0:02:56]}  d5 {[%clk 0:02:56]} 3. Nf3 {[%clk 0:02:55]}  exf4 {[%clk 0:02:49]} 4. exd5 {[%clk 0:02:52]}  Nf6 {[%clk 0:02:49]} 5. Nc3 {[%clk 0:02:47]}  Nxd5 {[%clk 0:02:48]} 6. Be2 {[%clk 0:02:47]}  Bc5 {[%clk 0:02:46]} 7. d4 {[%clk 0:02:38]}  Bb4 {[%clk 0:02:45]} 8. O-O {[%clk 0:02:31]}  Bxc3 {[%clk 0:02:40]} 9. bxc3 {[%clk 0:02:26]}  Nxc3 {[%clk 0:02:39]} 10. Qe1 {[%clk 0:02:16]}  Nxe2+ {[%clk 0:02:38]} 11. Qxe2+ {[%clk 0:02:17]}  Be6 {[%clk 0:02:39]} 12. Bxf4 {[%clk 0:02:15]}  O-O {[%clk 0:02:38]} 13. c4 {[%clk 0:02:02]}  c6 {[%clk 0:02:37]} 14. Rad1 {[%clk 0:01:56]}  Nd7 {[%clk 0:02:28]} 15. Ng5 {[%clk 0:01:50]}  Re8 {[%clk 0:02:19]} 16. Qd3 {[%clk 0:01:29]}  g6 {[%clk 0:02:06]} 17. d5 {[%clk 0:01:18]}  cxd5 {[%clk 0:02:03]} 18. cxd5 {[%clk 0:01:19]}  Bf5 {[%clk 0:02:03]} 19. Qg3 {[%clk 0:01:19]}  Nf6 {[%clk 0:01:52]} 20. d6 {[%clk 0:00:38]}  Qb6+ {[%clk 0:01:43]} 21. Kh1 {[%clk 0:00:36]}  Rad8 {[%clk 0:01:43]} 22. Qh4 {[%clk 0:00:30]}  h5 {[%clk 0:01:27]} 23. Nf3 {[%clk 0:00:22]}  Ng4 {[%clk 0:01:20]} 24. h3 {[%clk 0:00:17]}  Ne3 {[%clk 0:01:14]} 25. Bxe3 {[%clk 0:00:14]}  Qxe3 {[%clk 0:01:14]} 26. Rfe1 {[%clk 0:00:07]}  Qb6 {[%clk 0:00:47]} 27. Qf6 {[%clk 0:00:07]}  Qc6 {[%clk 0:00:25]} 28. Kh2 {[%clk 0:00:06]}  Rxe1 {[%clk 0:00:22]} 29. Qxd8+ {[%clk 0:00:05]}  Re8 {[%clk 0:00:22]} 30. Qf6 {[%clk 0:00:05]}  Qd7 {[%clk 0:00:22]} 31. Kg3 {[%clk 0:00:05]}  Re6 {[%clk 0:00:20]} 32. Qd4 {[%clk 0:00:03]}  Re4 {[%clk 0:00:20]} 33. Qf6 {[%clk 0:00:03]}  a6 {[%clk 0:00:20]} 34. Ne5 {[%clk 0:00:02]}  h4+ {[%clk 0:00:19]} 35. Kh2 {[%clk 0:00:02]}  Rxe5 {[%clk 0:00:11]} 36. Qxe5 {[%clk 0:00:03]}  Be6 {[%clk 0:00:10]} 37. Rc1 {[%clk 0:00:02]}  Qa4 {[%clk 0:00:09]} 38. Rc7 {[%clk 0:00:03]}  Qxa2 {[%clk 0:00:04]} 39. Qg5 {[%clk 0:00:03]}  Qd2 {[%clk 0:00:00]} 40. Qxd2 {[%clk 0:00:03]} 1-0


[Site "https://www.chess.com"]

[Event "Titled Tuesday Blitz July 11 Early 2023"]
[White "Nunez V, Gustavo Eduardo"]
[Black "Zavgorodniy, Sergiy"]
[WhiteFideId "4403690"]
[BlackFideId "14110148"]
[WhiteElo "2449"]
[BlackElo "2581"]
[Result "0-1"]
[Round "7"]
[TimeControl "180+2"]
[Date "2023.07.11"]
[WhiteClock "0:00:07"]
[BlackClock "0:00:15"]
[Board "91"]

1. e4 {[%clk 0:03:00]}  e5 {[%clk 0:02:58]} 2. Nc3 {[%clk 0:02:59]}  Nf6 {[%clk 0:02:53]} 3. g3 {[%clk 0:02:59]}  h5 {[%clk 0:02:49]} 4. h3 {[%clk 0:02:58]}  Bb4 {[%clk 0:02:45]} 5. Bg2 {[%clk 0:02:56]}  c6 {[%clk 0:02:42]} 6. Nge2 {[%clk 0:02:53]}  d5 {[%clk 0:02:43]} 7. a3 {[%clk 0:02:42]}  Bxc3 {[%clk 0:02:40]} 8. Nxc3 {[%clk 0:02:43]}  Nxe4 {[%clk 0:02:31]} 9. Nxe4 {[%clk 0:02:43]}  dxe4 {[%clk 0:02:32]} 10. Bxe4 {[%clk 0:02:42]}  f5 {[%clk 0:02:25]} 11. Bg2 {[%clk 0:02:41]}  h4 {[%clk 0:02:26]} 12. gxh4 {[%clk 0:02:32]}  Be6 {[%clk 0:02:16]} 13. d3 {[%clk 0:02:28]}  Qxh4 {[%clk 0:02:14]} 14. Qe2 {[%clk 0:02:13]}  Nd7 {[%clk 0:02:13]} 15. Bd2 {[%clk 0:02:07]}  O-O-O {[%clk 0:02:08]} 16. O-O-O {[%clk 0:02:07]}  Rde8 {[%clk 0:02:03]} 17. Qe3 {[%clk 0:02:01]}  Kb8 {[%clk 0:01:57]} 18. Qg3 {[%clk 0:01:33]}  Qxg3 {[%clk 0:01:40]} 19. fxg3 {[%clk 0:01:34]}  Bd5 {[%clk 0:01:40]} 20. Bxd5 {[%clk 0:01:33]}  cxd5 {[%clk 0:01:41]} 21. Rdf1 {[%clk 0:01:30]}  g6 {[%clk 0:01:39]} 22. h4 {[%clk 0:01:24]}  Nf6 {[%clk 0:01:31]} 23. Re1 {[%clk 0:01:18]}  Kc7 {[%clk 0:01:12]} 24. Rxe5 {[%clk 0:01:10]}  Rxe5 {[%clk 0:00:51]} 25. Bf4 {[%clk 0:01:10]}  Ng4 {[%clk 0:00:52]} 26. d4 {[%clk 0:01:06]}  Kd7 {[%clk 0:00:52]} 27. dxe5 {[%clk 0:00:58]}  Ke6 {[%clk 0:00:50]} 28. Re1 {[%clk 0:00:51]}  Rc8 {[%clk 0:00:45]} 29. b3 {[%clk 0:00:40]}  Rc3 {[%clk 0:00:43]} 30. Kd2 {[%clk 0:00:36]}  Rf3 {[%clk 0:00:42]} 31. Re2 {[%clk 0:00:22]}  Nf2 {[%clk 0:00:35]} 32. Re3 {[%clk 0:00:17]}  Ne4+ {[%clk 0:00:35]} 33. Kd3 {[%clk 0:00:17]}  Rf2 {[%clk 0:00:35]} 34. Re2 {[%clk 0:00:16]}  Rf3+ {[%clk 0:00:33]} 35. Re3 {[%clk 0:00:13]}  Rf2 {[%clk 0:00:33]} 36. Re2 {[%clk 0:00:12]}  Rf1 {[%clk 0:00:34]} 37. Kd4 {[%clk 0:00:11]}  Rd1+ {[%clk 0:00:21]} 38. Ke3 {[%clk 0:00:11]}  d4+ {[%clk 0:00:19]} 39. Kf3 {[%clk 0:00:11]}  d3 {[%clk 0:00:15]} 40. cxd3 {[%clk 0:00:10]}  Rxd3+ {[%clk 0:00:15]} 41. Re3 {[%clk 0:00:10]}  Rd1 {[%clk 0:00:15]} 42. Ke2 {[%clk 0:00:08]}  Rd2+ {[%clk 0:00:14]} 43. Kf3 {[%clk 0:00:07]}  Rf2# {[%clk 0:00:15]} 0-1


[Site "https://www.chess.com"]

[Event "Titled Tuesday Blitz July 11 Early 2023"]
[White "Begunov, Konstantin"]
[Black "ATM622"]
[WhiteFideId "4118510"]
[WhiteElo "2439"]
[BlackElo "2578"]
[Result "0-1"]
[Round "7"]
[TimeControl "180+2"]
[Date "2023.07.11"]
[WhiteClock "0:00:06"]
[BlackClock "0:01:35"]
[Board "92"]

1. d4 {[%clk 0:02:56]}  Nf6 {[%clk 0:02:59]} 2. c4 {[%clk 0:02:56]}  e6 {[%clk 0:02:59]} 3. Nf3 {[%clk 0:02:56]}  d5 {[%clk 0:02:58]} 4. Nc3 {[%clk 0:02:56]}  c6 {[%clk 0:02:56]} 5. cxd5 {[%clk 0:02:56]}  exd5 {[%clk 0:02:56]} 6. Bg5 {[%clk 0:02:56]}  Be7 {[%clk 0:02:54]} 7. Qc2 {[%clk 0:02:57]}  O-O {[%clk 0:02:54]} 8. e3 {[%clk 0:02:57]}  h6 {[%clk 0:02:52]} 9. Bh4 {[%clk 0:02:57]}  Nbd7 {[%clk 0:02:52]} 10. Bd3 {[%clk 0:02:57]}  Re8 {[%clk 0:02:50]} 11. O-O {[%clk 0:02:57]}  Nf8 {[%clk 0:02:49]} 12. Rab1 {[%clk 0:02:57]}  Ne4 {[%clk 0:02:47]} 13. Bxe4 {[%clk 0:02:55]}  Bxh4 {[%clk 0:02:43]} 14. Bd3 {[%clk 0:02:53]}  Bf6 {[%clk 0:02:41]} 15. b4 {[%clk 0:02:51]}  Bg4 {[%clk 0:02:36]} 16. Nd2 {[%clk 0:02:50]}  a6 {[%clk 0:02:30]} 17. a4 {[%clk 0:02:50]}  Qd6 {[%clk 0:02:27]} 18. b5 {[%clk 0:02:49]}  axb5 {[%clk 0:02:23]} 19. axb5 {[%clk 0:02:50]}  c5 {[%clk 0:02:24]} 20. dxc5 {[%clk 0:02:40]}  Qxc5 {[%clk 0:02:23]} 21. Nce4 {[%clk 0:02:31]}  Qe7 {[%clk 0:02:19]} 22. Nxf6+ {[%clk 0:02:26]}  Qxf6 {[%clk 0:02:20]} 23. Nb3 {[%clk 0:02:15]}  Qg5 {[%clk 0:02:17]} 24. Nd4 {[%clk 0:01:54]}  Bh3 {[%clk 0:02:14]} 25. f4 {[%clk 0:01:52]}  Qe7 {[%clk 0:02:11]} 26. Rfe1 {[%clk 0:01:39]}  Bd7 {[%clk 0:02:06]} 27. Qb3 {[%clk 0:01:33]}  Ra3 {[%clk 0:02:03]} 28. Qd1 {[%clk 0:01:24]}  Qc5 {[%clk 0:02:00]} 29. Rc1 {[%clk 0:01:13]}  Qb6 {[%clk 0:02:00]} 30. Ra1 {[%clk 0:00:46]}  Rea8 {[%clk 0:01:57]} 31. Rxa3 {[%clk 0:00:43]}  Rxa3 {[%clk 0:01:58]} 32. Bf1 {[%clk 0:00:39]}  Ne6 {[%clk 0:01:56]} 33. Nf5 {[%clk 0:00:35]}  Nxf4 {[%clk 0:01:46]} 34. Qc1 {[%clk 0:00:22]}  Ra2 {[%clk 0:01:43]} 35. Qc3 {[%clk 0:00:16]}  Bxf5 {[%clk 0:01:41]} 36. Qe5 {[%clk 0:00:14]}  Nd3 {[%clk 0:01:36]} 37. Rd1 {[%clk 0:00:06]}  Nxe5 {[%clk 0:01:35]} 0-1


[Site "https://www.chess.com"]

[Event "Titled Tuesday Blitz July 11 Early 2023"]
[White "whiteglovethief"]
[Black "Streltsov, Alexey"]
[BlackFideId "24104434"]
[WhiteElo "2429"]
[BlackElo "2571"]
[Result "0-1"]
[Round "7"]
[TimeControl "180+2"]
[Date "2023.07.11"]
[WhiteClock "0:00:46"]
[BlackClock "0:00:41"]
[Board "94"]

1. d4 {[%clk 0:02:53]}  Nf6 {[%clk 0:02:58]} 2. c4 {[%clk 0:02:53]}  g6 {[%clk 0:02:55]} 3. Nc3 {[%clk 0:02:52]}  d5 {[%clk 0:02:55]} 4. cxd5 {[%clk 0:02:53]}  Nxd5 {[%clk 0:02:56]} 5. e4 {[%clk 0:02:53]}  Nxc3 {[%clk 0:02:56]} 6. bxc3 {[%clk 0:02:54]}  Bg7 {[%clk 0:02:57]} 7. Nf3 {[%clk 0:02:55]}  c5 {[%clk 0:02:57]} 8. Rb1 {[%clk 0:02:55]}  O-O {[%clk 0:02:55]} 9. Be2 {[%clk 0:02:52]}  Bg4 {[%clk 0:02:51]} 10. Rxb7 {[%clk 0:02:43]}  Bxf3 {[%clk 0:02:50]} 11. Bxf3 {[%clk 0:02:40]}  cxd4 {[%clk 0:02:50]} 12. cxd4 {[%clk 0:02:39]}  Qxd4 {[%clk 0:02:33]} 13. Qxd4 {[%clk 0:02:36]}  Bxd4 {[%clk 0:02:34]} 14. Rxe7 {[%clk 0:02:31]}  Nc6 {[%clk 0:02:29]} 15. Rc7 {[%clk 0:02:29]}  Bc3+ {[%clk 0:02:22]} 16. Bd2 {[%clk 0:02:23]}  Bxd2+ {[%clk 0:02:19]} 17. Kxd2 {[%clk 0:02:24]}  Rfd8+ {[%clk 0:02:17]} 18. Ke3 {[%clk 0:02:23]}  Nb4 {[%clk 0:02:13]} 19. a3 {[%clk 0:02:16]}  Rd3+ {[%clk 0:02:12]} 20. Kf4 {[%clk 0:02:16]}  Rxa3 {[%clk 0:02:13]} 21. Rd1 {[%clk 0:02:11]}  Nd3+ {[%clk 0:02:08]} 22. Kg3 {[%clk 0:02:08]}  a5 {[%clk 0:02:01]} 23. Rb1 {[%clk 0:02:02]}  Nb4 {[%clk 0:01:48]} 24. Kf4 {[%clk 0:01:54]}  Rd3 {[%clk 0:01:37]} 25. e5 {[%clk 0:01:50]}  Re8 {[%clk 0:01:37]} 26. Rc5 {[%clk 0:01:46]}  Ra3 {[%clk 0:01:32]} 27. Rb5 {[%clk 0:01:22]}  Nd3+ {[%clk 0:01:26]} 28. Ke4 {[%clk 0:01:13]}  Nxf2+ {[%clk 0:01:24]} 29. Kd4 {[%clk 0:01:09]}  Rc8 {[%clk 0:01:04]} 30. R1b3 {[%clk 0:01:05]}  Ra4+ {[%clk 0:00:55]} 31. Ke3 {[%clk 0:01:02]}  Ng4+ {[%clk 0:00:55]} 32. Bxg4 {[%clk 0:01:00]}  Rxg4 {[%clk 0:00:56]} 33. Rxa5 {[%clk 0:01:00]}  Rxg2 {[%clk 0:00:56]} 34. e6 {[%clk 0:01:00]}  Re8 {[%clk 0:00:53]} 35. Kf3 {[%clk 0:00:57]}  Rxh2 {[%clk 0:00:49]} 36. exf7+ {[%clk 0:00:57]}  Kxf7 {[%clk 0:00:50]} 37. Rb7+ {[%clk 0:00:57]}  Re7 {[%clk 0:00:50]} 38. Rb8 {[%clk 0:00:50]}  Rh3+ {[%clk 0:00:48]} 39. Kg4 {[%clk 0:00:48]}  Rhe3 {[%clk 0:00:43]} 40. Raa8 {[%clk 0:00:47]}  R7e4+ {[%clk 0:00:39]} 41. Kg5 {[%clk 0:00:48]}  Rg3+ {[%clk 0:00:40]} 42. Kh6 {[%clk 0:00:46]}  Rh4# {[%clk 0:00:41]} 0-1


[Site "https://www.chess.com"]

[Event "Titled Tuesday Blitz July 11 Early 2023"]
[White "arenal72"]
[Black "infinitypoint"]
[WhiteElo "2426"]
[BlackElo "2568"]
[Result "1-0"]
[Round "7"]
[TimeControl "180+2"]
[Date "2023.07.11"]
[WhiteClock "0:00:12"]
[BlackClock "0:00:10"]
[Board "96"]

1. e4 {[%clk 0:03:00]}  e5 {[%clk 0:02:59]} 2. Nf3 {[%clk 0:03:00]}  Nf6 {[%clk 0:02:59]} 3. Nxe5 {[%clk 0:02:57]}  Nxe4 {[%clk 0:02:59]} 4. d4 {[%clk 0:02:57]}  d6 {[%clk 0:02:58]} 5. Nf3 {[%clk 0:02:57]}  d5 {[%clk 0:02:58]} 6. Bd3 {[%clk 0:02:56]}  Bd6 {[%clk 0:02:58]} 7. O-O {[%clk 0:02:56]}  O-O {[%clk 0:02:59]} 8. c4 {[%clk 0:02:56]}  c6 {[%clk 0:02:59]} 9. Nc3 {[%clk 0:02:56]}  Re8 {[%clk 0:02:57]} 10. Re1 {[%clk 0:02:53]}  Nxc3 {[%clk 0:02:50]} 11. bxc3 {[%clk 0:02:52]}  Rxe1+ {[%clk 0:02:49]} 12. Qxe1 {[%clk 0:02:52]}  Bg4 {[%clk 0:02:43]} 13. Ne5 {[%clk 0:02:50]}  Be6 {[%clk 0:02:41]} 14. c5 {[%clk 0:02:43]}  Bxe5 {[%clk 0:02:40]} 15. Qxe5 {[%clk 0:02:43]}  Nd7 {[%clk 0:02:39]} 16. Qg3 {[%clk 0:02:43]}  Nf8 {[%clk 0:02:34]} 17. Rb1 {[%clk 0:02:36]}  b5 {[%clk 0:02:31]} 18. Bg5 {[%clk 0:02:22]}  Qa5 {[%clk 0:02:30]} 19. Rb2 {[%clk 0:02:19]}  Re8 {[%clk 0:02:21]} 20. h4 {[%clk 0:02:16]}  Kh8 {[%clk 0:02:10]} 21. Bd2 {[%clk 0:02:12]}  Qa3 {[%clk 0:02:08]} 22. Rc2 {[%clk 0:02:08]}  a5 {[%clk 0:02:06]} 23. h5 {[%clk 0:02:07]}  h6 {[%clk 0:02:05]} 24. Kh2 {[%clk 0:02:02]}  b4 {[%clk 0:02:05]} 25. cxb4 {[%clk 0:02:02]}  axb4 {[%clk 0:02:05]} 26. Bf1 {[%clk 0:01:55]}  Qa4 {[%clk 0:01:40]} 27. Qb3 {[%clk 0:01:46]}  Ra8 {[%clk 0:01:25]} 28. Rb2 {[%clk 0:01:38]}  Qxb3 {[%clk 0:01:15]} 29. axb3 {[%clk 0:01:38]}  Bg4 {[%clk 0:01:07]} 30. Bxb4 {[%clk 0:01:31]}  Bxh5 {[%clk 0:01:07]} 31. Bd2 {[%clk 0:01:31]}  Ne6 {[%clk 0:01:05]} 32. Be3 {[%clk 0:01:25]}  Ra1 {[%clk 0:01:03]} 33. Bd3 {[%clk 0:01:21]}  f6 {[%clk 0:00:50]} 34. b4 {[%clk 0:01:19]}  Rd1 {[%clk 0:00:47]} 35. Rb3 {[%clk 0:00:59]}  Be8 {[%clk 0:00:44]} 36. Be2 {[%clk 0:00:52]}  Ra1 {[%clk 0:00:40]} 37. b5 {[%clk 0:00:50]}  cxb5 {[%clk 0:00:28]} 38. Bxb5 {[%clk 0:00:50]}  Bxb5 {[%clk 0:00:27]} 39. Rxb5 {[%clk 0:00:50]}  Ra4 {[%clk 0:00:27]} 40. c6 {[%clk 0:00:43]}  Rc4 {[%clk 0:00:22]} 41. Rxd5 {[%clk 0:00:42]}  Rxc6 {[%clk 0:00:21]} 42. Rd7 {[%clk 0:00:42]}  Ra6 {[%clk 0:00:16]} 43. d5 {[%clk 0:00:43]}  Ng5 {[%clk 0:00:16]} 44. f3 {[%clk 0:00:41]}  Kg8 {[%clk 0:00:16]} 45. Kg3 {[%clk 0:00:38]}  Kf8 {[%clk 0:00:15]} 46. Bc5+ {[%clk 0:00:38]}  Kg8 {[%clk 0:00:16]} 47. Rd8+ {[%clk 0:00:35]}  Kf7 {[%clk 0:00:15]} 48. Rd7+ {[%clk 0:00:35]}  Kg6 {[%clk 0:00:14]} 49. Bf8 {[%clk 0:00:34]}  Kf5 {[%clk 0:00:14]} 50. Bxg7 {[%clk 0:00:30]}  h5 {[%clk 0:00:14]} 51. Bf8 {[%clk 0:00:27]}  Ra4 {[%clk 0:00:12]} 52. Rd6 {[%clk 0:00:25]}  h4+ {[%clk 0:00:11]} 53. Kh2 {[%clk 0:00:22]}  Ra2 {[%clk 0:00:11]} 54. Kg1 {[%clk 0:00:22]}  h3 {[%clk 0:00:11]} 55. gxh3 {[%clk 0:00:21]}  Nxf3+ {[%clk 0:00:11]} 56. Kf1 {[%clk 0:00:20]}  Ke5 {[%clk 0:00:10]} 57. Rd8 {[%clk 0:00:18]}  f5 {[%clk 0:00:09]} 58. d6 {[%clk 0:00:16]}  Kf4 {[%clk 0:00:09]} 59. d7 {[%clk 0:00:15]}  Rd2 {[%clk 0:00:08]} 60. Bh6+ {[%clk 0:00:15]}  Kg3 {[%clk 0:00:08]} 61. Bxd2 {[%clk 0:00:15]}  Nxd2+ {[%clk 0:00:09]} 62. Ke2 {[%clk 0:00:15]}  Ne4 {[%clk 0:00:09]} 63. Rg8+ {[%clk 0:00:15]}  Kf4 {[%clk 0:00:09]} 64. d8=Q {[%clk 0:00:15]}  Nc3+ {[%clk 0:00:10]} 65. Kd3 {[%clk 0:00:15]}  Ne4 {[%clk 0:00:11]} 66. Qc7+ {[%clk 0:00:15]}  Kf3 {[%clk 0:00:11]} 67. Qc1 {[%clk 0:00:13]}  Nf2+ {[%clk 0:00:11]} 68. Kd4 {[%clk 0:00:12]}  Nxh3 {[%clk 0:00:10]} 69. Qe3# {[%clk 0:00:12]} 1-0


[Site "https://www.chess.com"]